bitfinex-derivatives/quotes_BNBF0:USTF0_20251010
["timestamp","ask_amount","ask_price","bid_price","bid_amount"]
[1760129162067,0.79465625,1235.3,1232.1,1.17276981]
[1760129162068,0.79465625,1234.9,1232.8,0.60094621]
[1760129162362,0.79465625,1235.0,1232.7,0.60094621]
[1760129163066,0.79465625,1235.1,1232.8,0.60094621]
[1760129163768,0.79465625,1234.9,1232.8,0.60094621]
[1760129164062,0.79465625,1234.8,1232.9,0.60094621]
[1760129164269,0.79465625,1234.9,1232.9,0.60094621]
[1760129164567,0.79465625,1235.2,1233.1,0.60094621]
[1760129164763,0.79465625,1235.2,1233.2,0.60094621]
[1760129165464,0.79465625,1235.3,1233.2,0.60094621]
[1760129165668,0.79465625,1235.2,1233.2,0.60094621]
[1760129166968,1.94673086,1236.2,1233.1,0.60094621]
[1760129166969,0.79465625,1235.3,1233.1,0.60094621]
[1760129167464,0.79465625,1235.1,1233.0,0.60094621]
[1760129167765,0.79465625,1235.0,1232.9,0.60094621]
[1760129168068,0.79465625,1235.3,1232.8,0.60094621]
[1760129169269,0.79465625,1235.4,1232.8,0.60094621]
[1760129170170,0.79465625,1235.3,1232.7,0.60094621]
[1760129170370,0.79465625,1235.4,1232.7,0.60094621]
[1760129170569,0.79465625,1235.2,1233.0,0.60094621]
[1760129170867,0.79465625,1235.3,1233.0,0.60094621]
[1760129171978,0.79465625,1235.2,1233.0,0.60094621]
[1760129172173,0.79465625,1235.3,1233.0,0.60094621]
[1760129175680,0.79465625,1235.4,1232.9,0.60094621]
[1760129175977,0.79465625,1235.3,1232.8,0.60094621]
[1760129176378,1.21301626,1235.5,1232.7,0.60094621]
[1760129176379,0.79465625,1235.2,1232.7,0.60094621]
[1760129176780,0.79465625,1235.0,1232.7,0.60094621]
[1760129176978,0.79465625,1234.9,1232.6,0.60094621]
[1760129177382,0.79465625,1235.0,1232.5,0.60094621]
[1760129178082,0.79465625,1235.1,1232.5,0.60094621]
[1760129179380,0.79465625,1235.2,1232.4,0.60094621]
[1760129180079,0.79465625,1235.2,1232.5,0.60094621]
[1760129180283,0.79465625,1235.3,1232.6,0.60094621]
[1760129181679,0.79465625,1235.3,1232.5,0.60094621]
[1760129182084,0.79465625,1235.2,1232.5,0.60094621]
[1760129182583,0.79465625,1235.1,1232.4,0.60094621]
[1760129182783,0.79465625,1235.0,1232.3,0.60094621]
[1760129183079,0.79465625,1235.0,1232.4,0.60094621]
[1760129183283,0.14081373,1236.8,1232.2,0.60094621]
[1760129183284,0.79465625,1234.9,1232.2,0.60094621]
[1760129184084,0.79465625,1235.0,1232.1,0.60094621]
[1760129186187,0.79465625,1235.1,1232.1,0.60094621]
[1760129187388,0.79465625,1235.1,1231.8,0.78184654]
[1760129187389,0.79465625,1235.0,1231.9,0.60094621]
[1760129187586,0.79465625,1234.9,1231.9,0.60094621]
[1760129187790,0.79465625,1234.8,1231.8,0.60094621]
[1760129188287,0.79465625,1234.9,1231.7,0.60094621]
[1760129189190,0.79465625,1234.8,1231.7,0.60094621]
[1760129189385,0.79465625,1235.2,1231.6,0.60094621]
[1760129191290,0.79465625,1235.2,1231.5,0.60094621]
[1760129195893,0.79465625,1235.1,1231.6,0.60094621]
[1760129197490,2.08754459,1236.8,1231.6,0.60094621]
[1760129197491,0.79465625,1235.0,1231.6,0.60094621]
[1760129199099,0.79465625,1234.8,1231.5,0.60094621]
[1760129199699,0.79465625,1234.8,1231.4,0.60094621]
[1760129200303,0.79465625,1234.7,1231.3,0.74175908]
[1760129200495,0.79465625,1234.5,1231.1,0.60094621]
[1760129200700,0.79465625,1234.2,1231.0,0.141159]
[1760129200900,0.79465625,1234.3,1231.0,0.141159]
[1760129203197,0.79465625,1234.5,1231.2,0.60094621]
[1760129203702,0.79465625,1234.8,1231.4,0.60094621]
[1760129203897,0.79465625,1234.9,1231.4,0.60094621]
[1760129204102,0.79465625,1234.9,1231.3,0.60094621]
[1760129204299,0.79465625,1234.9,1231.4,0.60094621]
[1760129204698,0.79465625,1234.9,1231.5,0.60094621]
[1760129205003,0.79465625,1235.0,1231.5,0.60094621]
[1760129206305,0.79465625,1234.9,1231.5,0.60094621]
[1760129206905,0.79465625,1234.8,1231.5,0.60094621]
[1760129207301,0.79465625,1234.7,1231.4,0.60094621]
[1760129207704,0.79465625,1234.8,1231.4,0.60094621]
[1760129207904,0.79465625,1234.7,1231.4,0.60094621]
[1760129208103,0.79465625,1234.7,1231.3,0.60094621]
[1760129208302,0.79465625,1234.7,1231.4,0.60094621]
[1760129208502,0.79465625,1234.6,1231.3,0.60094621]
[1760129210106,0.79465625,1234.6,1231.4,0.60094621]
[1760129210505,0.79465625,1234.7,1231.4,0.60094621]
[1760129212203,0.79465625,1234.6,1231.3,0.60094621]
[1760129212404,0.79465625,1234.5,1231.0,0.74210521]
[1760129213104,0.79465625,1234.6,1231.0,0.74210521]
[1760129213308,0.79465625,1234.5,1231.0,0.74210521]
[1760129213807,0.79465625,1234.6,1231.0,0.74210521]
[1760129214003,0.79465625,1234.5,1231.1,0.60094621]
[1760129214203,0.79465625,1234.3,1231.2,0.60094621]
[1760129215314,0.79465625,1234.3,1231.3,0.60094621]
[1760129215707,0.79465625,1234.4,1231.3,0.60094621]
[1760129216208,0.79465625,1234.4,1231.2,0.60094621]
[1760129216511,0.79465625,1234.4,1231.3,0.60094621]
[1760129217309,0.79465625,1234.3,1231.2,0.60094621]
[1760129218306,0.79465625,1234.3,1231.3,0.60094621]
[1760129218707,0.79465625,1234.2,1231.3,0.60094621]
[1760129218912,0.79465625,1234.3,1231.2,0.60094621]
[1760129219207,0.79465625,1234.0,1231.0,0.74210521]
[1760129219713,0.79465625,1234.0,1231.0,0.141159]
[1760129219912,0.79465625,1234.0,1231.0,0.74172756]
[1760129220107,0.79465625,1234.0,1231.1,0.60056856]
[1760129220611,0.79465625,1233.7,1231.0,0.74172756]
[1760129220807,0.79465625,1233.8,1231.0,0.74172756]
[1760129221008,0.79465625,1233.7,1231.0,0.74172756]
[1760129221312,0.79465625,1233.7,1231.1,0.60056856]
[1760129221807,0.79465625,1233.7,1231.2,0.60056856]
[1760129222913,0.79465625,1233.8,1231.3,0.60056856]
[1760129223409,0.79465625,1233.9,1231.3,0.60056856]
[1760129223613,0.79465625,1233.9,1231.4,0.60056856]
[1760129224013,0.79465625,1234.0,1231.5,0.60056856]
[1760129224214,0.79465625,1234.2,1231.5,0.60056856]
[1760129224710,0.79465625,1234.3,1231.5,0.60056856]
[1760129224913,0.79465625,1234.4,1231.6,0.60056856]
[1760129225316,0.79465625,1234.4,1231.7,0.60056856]
[1760129225714,0.79465625,1234.3,1231.8,0.60056856]
[1760129226511,0.79465625,1234.6,1232.0,0.60056856]
[1760129227010,0.79465625,1234.7,1232.0,0.60056856]
[1760129227414,0.79465625,1234.7,1232.1,0.60056856]
[1760129227714,0.79465625,1234.6,1232.2,0.60056856]
[1760129227918,0.79465625,1234.7,1232.3,0.60056856]
[1760129228415,0.79465625,1235.0,1232.4,0.60056856]
[1760129228719,0.79465625,1235.1,1232.4,0.60056856]
[1760129228918,0.79465625,1235.1,1232.5,0.60056856]
[1760129229318,0.79465625,1235.1,1232.6,0.60056856]
[1760129229519,0.79465625,1235.2,1232.6,0.60056856]
[1760129229821,0.79465625,1235.1,1232.6,0.60056856]
[1760129230219,0.79465625,1235.1,1232.5,0.60056856]
[1760129231236,0.79465625,1235.0,1232.5,0.60056856]
[1760129231637,0.79465625,1235.1,1232.5,0.60056856]
[1760129231837,0.79465625,1235.0,1232.3,0.60056856]
[1760129232236,0.79465625,1234.9,1232.3,0.60056856]
[1760129232433,0.79465625,1234.8,1232.2,0.60056856]
[1760129233736,0.79465625,1234.6,1232.2,0.60056856]
[1760129234336,0.79465625,1234.7,1232.2,0.60056856]
[1760129235233,0.79465625,1234.6,1232.2,0.60056856]
[1760129236438,1.21301626,1234.8,1232.2,0.60056856]
[1760129236439,0.79465625,1234.5,1232.2,0.60056856]
[1760129236635,0.79465625,1234.5,1232.1,0.60056856]
[1760129237536,0.79465625,1234.8,1232.3,0.60056856]
[1760129237935,0.79465625,1234.8,1232.1,0.60056856]
[1760129238136,0.79465625,1234.7,1232.2,0.60056856]
[1760129239339,0.79465625,1234.6,1232.1,0.60056856]
[1760129240139,2.8706271,1236.8,1231.0,0.141159]
[1760129240140,0.79465625,1234.7,1232.2,0.60056856]
[1760129240336,0.79465625,1234.5,1232.3,0.60056856]
[1760129241039,0.79465625,1234.5,1232.4,0.60056856]
[1760129242537,0.79465625,1234.8,1232.5,0.60056856]
[1760129242837,0.79465625,1234.6,1232.4,0.60056856]
[1760129243041,0.79465625,1234.4,1232.2,0.60056856]
[1760129243242,0.79465625,1234.4,1232.3,0.60056856]
[1760129243438,0.79465625,1234.4,1232.2,0.60056856]
[1760129243737,0.79465625,1234.4,1231.0,0.141159]
[1760129243738,0.79465625,1234.3,1232.1,0.60056856]
[1760129244138,0.79465625,1234.2,1232.2,0.60056856]
[1760129244438,0.79465625,1234.3,1232.2,0.60056856]
[1760129244743,0.79465625,1234.3,1232.3,0.60056856]
[1760129246048,0.79465625,1234.4,1232.4,0.60056856]
[1760129246246,0.79465625,1234.5,1232.5,0.60056856]
[1760129246648,0.79465625,1234.7,1232.7,0.60056856]
[1760129247746,0.79465625,1234.7,1232.8,0.60056856]
[1760129247950,0.79465625,1234.7,1232.7,0.60056856]
[1760129251557,0.79465625,1234.8,1232.6,0.60056856]
[1760129253751,0.79465625,1234.9,1232.6,0.60056856]
[1760129255650,0.79465625,1234.9,1232.2,0.60056856]
[1760129255851,0.79465625,1234.8,1232.3,0.60056856]
[1760129256155,0.79465625,1235.0,1232.4,0.60056856]
[1760129256956,0.79465625,1234.9,1232.5,0.60056856]
[1760129257151,0.79465625,1235.0,1232.5,0.60056856]
[1760129257455,0.14104801,1234.4,1232.6,0.60056856]
[1760129257852,0.14104801,1234.4,1232.5,0.60056856]
[1760129258153,0.14104801,1234.4,1232.6,0.60056856]
[1760129265264,0.14104801,1234.4,1232.5,0.60056856]
[1760129265761,0.14104801,1234.4,1232.6,0.60056856]
[1760129265961,0.14104801,1234.4,1232.7,0.60056856]
[1760129266765,0.14104801,1234.4,1232.8,0.60056856]
[1760129266966,0.14104801,1234.4,1233.0,0.60056856]
[1760129267968,0.14104801,1234.4,1232.9,0.60056856]
[1760129269265,0.14104801,1234.4,1232.8,0.60056856]
[1760129270165,0.14104801,1234.4,1232.4,1.17276981]
[1760129270166,0.14104801,1234.4,1232.7,0.60056856]
[1760129272574,0.14104801,1234.4,1232.6,0.60056856]
[1760129272869,0.14104801,1234.4,1232.7,0.60056856]
[1760129273269,0.14104801,1234.4,1232.8,0.60056856]
[1760129273468,0.14104801,1234.4,1232.9,0.60056856]
[1760129274071,0.14104801,1234.4,1232.8,0.60056856]
[1760129274269,0.14104801,1234.4,1232.9,0.60056856]
[1760129276272,0.14104801,1234.4,1233.0,0.60056856]
[1760129277972,0.14104801,1234.4,1232.9,0.60056856]
[1760129278775,0.14104801,1234.4,1232.8,0.60056856]
[1760129280974,0.14104801,1234.4,1232.5,0.60056856]
[1760129281475,0.14104801,1234.4,1232.6,0.60056856]
[1760129281871,0.14104801,1234.4,1232.5,0.60056856]
[1760129282076,0.14104801,1234.4,1232.6,0.60056856]
[1760129282277,0.14104801,1234.4,1232.7,0.60056856]
[1760129283177,0.14104801,1234.4,1232.8,0.60056856]
[1760129283675,0.14104801,1234.4,1232.7,0.60056856]
[1760129284078,0.14104801,1234.4,1232.4,0.78184654]
[1760129284079,0.14104801,1234.4,1232.6,0.60056856]
[1760129284279,0.14104801,1234.4,1232.7,0.60056856]
[1760129284979,0.14104801,1234.4,1232.8,0.60056856]
[1760129285180,0.14104801,1234.4,1232.9,0.60056856]
[1760129285981,0.14104801,1234.4,1233.0,0.60056856]
[1760129289382,0.14104801,1234.4,1233.1,0.60056856]
[1760129291793,0.14104801,1234.4,1233.0,0.60056856]
[1760129293088,0.79465625,1235.9,1233.9,0.60056856]
[1760129293286,0.14099144,1234.9,1233.8,0.60056856]
[1760129293589,0.79465625,1235.7,1233.6,0.60056856]
[1760129293789,0.14093805,1234.9,1233.6,0.60056856]
[1760129294190,0.79465625,1235.6,1233.6,0.60056856]
[1760129294390,0.14094661,1234.8,1233.6,0.60056856]
[1760129294590,0.79465625,1235.6,1233.5,0.60056856]
[1760129294991,0.14095089,1234.7,1233.5,0.60056856]
[1760129295192,0.79465625,1235.6,1233.4,0.60056856]
[1760129295390,0.79465625,1235.4,1233.2,0.60056856]
[1760129295588,0.1409743,1234.5,1233.2,0.60056856]
[1760129295787,0.79465625,1235.4,1233.2,0.60056856]
[1760129296091,0.14098858,1234.4,1233.2,0.60056856]
[1760129296288,0.79465625,1235.4,1233.2,0.60056856]
[1760129296587,0.14098858,1234.4,1233.2,0.60056856]
[1760129296792,0.79465625,1235.4,1233.0,0.60056856]
[1760129297088,0.14099372,1234.3,1233.0,0.60056856]
[1760129297492,0.79465625,1235.3,1233.0,0.60056856]
[1760129297687,0.14100229,1234.3,1233.0,0.60056856]
[1760129297891,0.79465625,1235.3,1233.0,0.60056856]
[1760129298292,0.14100229,1234.3,1233.0,0.60056856]
[1760129298594,0.79465625,1235.3,1233.0,0.60056856]
[1760129298794,0.14100743,1234.2,1233.0,0.60056856]
[1760129298992,0.79465625,1235.3,1233.0,0.60056856]
[1760129299295,0.14100972,1234.2,1233.1,0.60056856]
[1760129299495,0.14100972,1234.2,1233.0,0.60056856]
[1760129299700,0.79465625,1234.7,1233.0,0.60056856]
[1760129299896,0.14102629,1234.1,1233.0,0.60056856]
[1760129300097,0.79465625,1234.7,1233.0,0.60056856]
[1760129300397,0.14103229,1234.1,1233.0,0.60056856]
[1760129300602,0.14103229,1234.1,1232.9,0.60056856]
[1760129300801,0.79465625,1234.7,1232.9,0.60056856]
[1760129301002,0.14103572,1234.0,1232.9,0.60056856]
[1760129301202,0.79465625,1234.7,1232.7,0.60056856]
[1760129301698,0.14103601,1234.0,1232.7,0.60056856]
[1760129301901,0.79465625,1234.7,1232.7,0.60056856]
[1760129302201,0.14104458,1234.3,1232.7,0.60056856]
[1760129303706,0.14104458,1234.3,1232.5,0.60056856]
[1760129303897,0.14104458,1234.3,1232.2,0.60056856]
[1760129304197,0.14104458,1234.3,1232.1,0.60056856]
[1760129304401,0.79465625,1234.0,1232.3,0.60056856]
[1760129304598,0.79465625,1233.9,1232.3,0.60056856]
[1760129304803,0.79465625,1234.0,1232.1,0.60056856]
[1760129305002,0.79465625,1233.9,1232.1,0.60056856]
[1760129305203,0.79465625,1233.9,1232.0,0.60056856]
[1760129305402,0.79465625,1233.8,1232.1,0.60056856]
[1760129305902,0.79465625,1233.8,1232.0,0.60056856]
[1760129306801,0.79465625,1233.8,1231.9,0.60056856]
[1760129307606,0.79465625,1233.8,1231.8,0.60056856]
[1760129308107,0.79465625,1233.8,1231.9,0.60056856]
[1760129308405,0.79465625,1233.8,1231.8,0.60056856]
[1760129309405,0.79465625,1233.9,1231.8,0.60056856]
[1760129310308,0.79465625,1234.0,1231.9,0.60056856]
[1760129310601,0.79465625,1234.0,1231.8,0.60056856]
[1760129310805,0.79465625,1234.1,1231.8,0.60056856]
[1760129311505,0.79465625,1234.1,1231.7,0.60056856]
[1760129312101,0.79465625,1234.0,1231.6,0.60056856]
[1760129312306,0.79465625,1234.0,1231.5,0.60056856]
[1760129313602,0.79465625,1233.9,1231.6,0.60056856]
[1760129313907,0.79465625,1233.8,1231.6,0.60056856]
[1760129314407,0.79465625,1233.8,1231.5,0.60056856]
[1760129315307,0.79465625,1233.9,1231.5,0.60056856]
[1760129317205,0.79465625,1233.9,1231.4,0.60056856]
[1760129318709,0.79465625,1233.9,1231.3,0.60056856]
[1760129319412,0.79465625,1233.9,1231.2,0.60056856]
[1760129319909,0.79465625,1233.8,1231.1,0.60056856]
[1760129320113,0.79465625,1233.7,1231.0,0.74172756]
[1760129320715,0.79465625,1233.8,1231.0,0.74172756]
[1760129320915,0.79465625,1233.7,1231.0,0.74172756]
[1760129321212,0.79465625,1233.7,1231.0,0.141159]
[1760129321413,0.79465625,1233.8,1231.0,0.141159]
[1760129326521,0.79465625,1234.0,1231.0,0.141159]
[1760129327821,0.79465625,1233.9,1231.0,0.74172756]
[1760129328819,0.79465625,1233.9,1231.0,0.141159]
[1760129329023,0.79465625,1233.8,1231.0,0.141159]
[1760129332625,0.79465625,1233.9,1231.0,0.141159]
[1760129332824,0.79465625,1233.8,1231.0,0.141159]
[1760129333521,0.79465625,1233.9,1231.0,0.141159]
[1760129335830,0.79465625,1234.0,1231.0,0.141159]
[1760129336333,0.79465625,1234.2,1231.0,0.141159]
[1760129336531,0.93570083,1234.3,1231.0,0.141159]
[1760129338133,0.79465625,1234.2,1231.0,0.74172756]
[1760129338830,0.79465625,1234.2,1231.1,0.60056856]
[1760129339834,0.14104458,1234.3,1231.2,0.60056856]
[1760129341637,0.14104458,1234.3,1231.1,0.60056856]
[1760129341833,0.14104458,1234.3,1231.2,0.60056856]
[1760129342539,0.93570083,1234.3,1231.4,0.60056856]
[1760129342834,0.14104458,1234.3,1231.3,0.60056856]
[1760129343056,0.14104458,1234.3,1231.5,0.60056856]
[1760129343535,0.14104458,1234.3,1231.6,0.60056856]
[1760129344135,0.14104458,1234.3,1231.5,0.60056856]
[1760129346842,0.14104458,1234.3,1231.6,0.60056856]
[1760129347038,0.14104458,1234.3,1231.7,0.60056856]
[1760129347242,0.14104458,1234.3,1231.9,0.60056856]
[1760129348044,0.14104458,1234.3,1231.8,0.60056856]
[1760129349939,0.14104458,1234.3,1232.0,0.60056856]
[1760129350541,0.14104458,1234.3,1231.8,0.78184654]
[1760129350542,0.14104458,1234.3,1232.1,0.60056856]
[1760129352151,0.14104458,1234.3,1232.0,0.60056856]
[1760129353451,0.14104458,1234.3,1232.1,0.60056856]
[1760129353749,0.14104458,1234.3,1232.0,0.60056856]
[1760129353952,0.14104458,1234.3,1231.9,0.60056856]
[1760129354148,0.14104458,1234.3,1231.8,0.60056856]
[1760129354353,0.14104458,1234.3,1231.9,0.60056856]
[1760129355153,0.14104458,1234.3,1231.4,1.17276981]
[1760129355154,0.14104458,1234.3,1231.7,0.60056856]
[1760129355455,0.93570083,1234.3,1231.7,0.60056856]
[1760129355851,0.79465625,1234.2,1231.6,0.60056856]
[1760129356255,0.79465625,1234.1,1231.7,0.60056856]
[1760129356455,0.79465625,1234.0,1231.7,0.60056856]
[1760129356854,0.79465625,1234.0,1231.6,0.60056856]
[1760129357256,0.14104458,1234.3,1231.7,0.60056856]
[1760129357257,0.79465625,1233.9,1231.7,0.60056856]
[1760129358760,0.93570083,1234.3,1231.9,0.60056856]
[1760129358960,0.93570083,1234.3,1232.0,0.60056856]
[1760129359157,0.14104458,1234.3,1232.2,0.60056856]
[1760129360361,0.14104458,1234.3,1232.3,0.60056856]
[1760129361465,0.14104458,1234.3,1232.4,0.60056856]
[1760129361660,0.14104458,1234.3,1232.1,0.78184654]
[1760129361661,0.14104458,1234.3,1232.5,0.60056856]
[1760129362461,0.14104458,1234.3,1232.6,0.60056856]
[1760129365462,0.14104458,1234.3,1232.5,0.60056856]
[1760129365665,0.14104458,1234.3,1232.6,0.60056856]
[1760129365861,0.14104458,1234.3,1232.7,0.60056856]
[1760129366562,0.14104458,1234.3,1232.6,0.60056856]
[1760129367364,0.79465625,1235.0,1232.9,0.60056856]
[1760129367568,0.79465625,1235.3,1233.0,0.60056856]
[1760129367768,0.14102286,1234.4,1232.9,0.60056856]
[1760129367968,0.79465625,1235.2,1232.9,0.60056856]
[1760129368169,0.79465625,1235.3,1232.9,0.60056856]
[1760129368369,0.14100572,1234.4,1232.9,0.60056856]
[1760129368670,0.79465625,1235.6,1232.8,0.60056856]
[1760129368966,0.14101029,1234.2,1232.7,0.60056856]
[1760129369165,0.79465625,1235.5,1232.7,0.60056856]
[1760129369368,0.14100458,1235.0,1232.6,0.60056856]
[1760129369565,0.14100458,1235.0,1232.7,0.60056856]
[1760129369770,0.14100458,1235.0,1232.6,0.60056856]
[1760129370370,0.14100458,1235.0,1232.5,0.60056856]
[1760129370867,0.93566083,1235.0,1232.7,0.60056856]
[1760129371068,0.93566083,1235.0,1232.6,0.60056856]
[1760129371968,0.79465625,1234.6,1232.1,0.60056856]
[1760129372172,0.14100458,1235.0,1232.1,0.60056856]
[1760129372173,0.79465625,1234.5,1232.1,0.60056856]
[1760129372673,0.79465625,1234.4,1232.0,0.60056856]
[1760129372874,0.79465625,1234.4,1232.1,0.60056856]
[1760129373074,0.79465625,1234.5,1232.0,0.60056856]
[1760129374776,0.79465625,1234.4,1232.0,0.60056856]
[1760129380181,0.79465625,1234.4,1231.9,0.60056856]
[1760129380485,0.79465625,1234.5,1232.1,0.60056856]
[1760129381279,0.79465625,1234.6,1232.1,0.60056856]
[1760129381485,0.79465625,1234.5,1232.1,0.60056856]
[1760129383288,0.79465625,1234.6,1232.1,0.60056856]
[1760129385291,0.79465625,1234.6,1232.2,0.60056856]
[1760129387194,0.79465625,1234.5,1232.3,0.60056856]
[1760129388690,0.79465625,1234.5,1232.4,0.60056856]
[1760129388892,0.79465625,1234.6,1232.4,0.60056856]
[1760129390493,0.79465625,1234.5,1232.4,0.60056856]
[1760129392401,0.79465625,1234.4,1232.4,0.60056856]
[1760129393108,0.79465625,1234.5,1232.4,0.60056856]
[1760129393302,0.79465625,1234.8,1232.2,0.60056856]
[1760129393602,0.79465625,1234.7,1232.1,0.60056856]
[1760129393802,0.79465625,1234.6,1232.0,0.60056856]
[1760129395113,0.79465625,1234.2,1232.1,0.60056856]
[1760129395604,0.14100458,1235.0,1232.1,0.60056856]
[1760129395605,0.79465625,1234.1,1232.1,0.60056856]
[1760129396304,0.79465625,1234.1,1232.2,0.60056856]
[1760129396802,0.79465625,1234.1,1232.1,0.60056856]
[1760129397105,0.79465625,1234.0,1232.1,0.60056856]
[1760129397306,0.79465625,1234.0,1232.2,0.60056856]
[1760129399609,0.79465625,1234.1,1232.1,0.60056856]
[1760129401306,0.79465625,1233.7,1231.9,0.60056856]
[1760129402208,0.79465625,1233.7,1231.7,0.60056856]
[1760129402711,0.79465625,1233.7,1231.4,0.78184654]
[1760129402712,0.79465625,1233.9,1231.5,0.60056856]
[1760129402910,0.79465625,1233.2,1231.0,0.60056856]
[1760129403108,0.79465625,1233.2,1230.9,0.60056856]
[1760129403908,0.79465625,1233.2,1230.8,0.60056856]
[1760129404407,0.79465625,1233.7,1230.6,0.74177195]
[1760129404612,0.79465625,1233.6,1230.6,0.74177195]
[1760129405010,0.79465625,1233.7,1230.6,0.74177195]
[1760129405311,0.79465625,1233.7,1230.6,0.14120339]
[1760129406112,0.14100458,1235.0,1230.6,0.74429101]
[1760129406113,0.79465625,1233.6,1230.6,0.74429101]
[1760129406314,0.79465625,1233.6,1230.6,0.14120339]
[1760129406814,0.79465625,1232.9,1230.6,0.74429101]
[1760129407009,0.14100458,1235.0,1230.6,0.14120339]
[1760129407010,0.79465625,1233.0,1230.6,0.14120339]
[1760129407213,0.79465625,1233.1,1230.6,0.14120339]
[1760129407417,0.79465625,1233.1,1230.2,0.60308762]
[1760129407728,0.79465625,1233.1,1230.3,0.14128164]
[1760129408111,0.79465625,1233.0,1230.2,0.60308762]
[1760129408426,0.79465625,1233.0,1229.9,0.78184654]
[1760129408427,0.79465625,1232.6,1229.8,0.14130602]
[1760129408615,0.79465625,1232.4,1229.8,0.14130602]
[1760129408812,0.79465625,1232.2,1229.5,0.60308762]
[1760129409112,0.79465625,1232.2,1229.3,0.78184654]
[1760129409113,0.79465625,1231.7,1229.3,0.14137836]
[1760129409318,0.79465625,1231.9,1229.3,0.14137836]
[1760129409518,0.79465625,1231.9,1228.4,0.60308762]
[1760129409814,0.79465625,1231.6,1228.5,0.60308762]
[1760129410013,0.79465625,1230.9,1227.6,0.78184654]
[1760129410228,0.79465625,1231.1,1227.6,0.78184654]
[1760129410417,4.01026429,1234.4,1226.3,2.80028974]
[1760129410418,0.79465625,1231.7,1227.4,0.78184654]
[1760129410618,0.79465625,1231.8,1228.4,0.14150915]
[1760129410914,0.14147722,1230.7,1228.4,0.14150915]
[1760129411230,0.79465625,1231.5,1228.4,0.14150915]
[1760129411418,0.79465625,1231.2,1228.4,0.14150915]
[1760129411725,0.79465625,1231.5,1228.4,0.14150915]
[1760129411918,0.79465625,1231.2,1228.4,0.14150915]
[1760129412115,0.79465625,1231.4,1228.4,0.14150915]
[1760129412319,1.21301626,1231.7,1228.4,0.14150915]
[1760129412320,0.79465625,1231.2,1228.4,0.14150915]
[1760129412518,0.14152468,1230.6,1228.4,0.14150915]
[1760129413018,0.14152468,1230.6,1226.1,0.78184654]
[1760129413215,0.14152468,1230.6,1227.9,0.14159811]
[1760129413718,0.14152468,1230.6,1227.9,0.14160704]
[1760129414113,0.14152468,1230.6,1226.1,0.78184654]
[1760129414314,0.79465625,1231.1,1227.9,0.14159724]
[1760129414615,0.79465625,1231.1,1226.1,0.78184654]
[1760129415220,0.79465625,1231.4,1225.9,0.78184654]
[1760129415420,0.79465625,1231.7,1225.8,0.78184654]
[1760129415722,0.1415814,1229.9,1227.3,0.1415814]
[1760129415913,0.79465625,1231.8,1227.3,0.1415814]
[1760129416115,0.79465625,1231.9,1227.3,0.1415814]
[1760129416320,0.79465625,1231.6,1227.3,0.1415814]
[1760129416520,0.79465625,1231.5,1227.3,0.1415814]
[1760129416713,0.79465625,1231.4,1227.3,0.1415814]
[1760129416914,4.01026429,1235.0,1227.3,0.1415814]
[1760129416915,0.79465625,1231.2,1227.3,0.1415814]
[1760129417116,0.14160041,1230.4,1227.3,0.1415814]
[1760129418015,0.93625666,1230.4,1227.3,0.1415814]
[1760129418214,0.14160041,1230.4,1224.5,0.78184654]
[1760129418416,0.14160041,1230.4,1226.8,0.14171747]
[1760129418824,0.14160041,1230.4,1224.4,0.78184654]
[1760129419121,0.14160041,1230.4,1226.8,0.14171228]
[1760129419316,0.14160041,1230.4,1224.5,0.78184654]
[1760129419516,0.14160041,1230.4,1225.4,0.14173796]
[1760129420216,0.79465625,1230.3,1225.4,0.14173796]
[1760129420518,0.79465625,1229.9,1223.2,0.78184654]
[1760129420715,0.79465625,1230.3,1223.1,0.78184654]
[1760129420916,0.79465625,1230.3,1225.4,0.14181131]
[1760129421220,0.14160041,1230.4,1222.8,0.78184654]
[1760129421221,0.93625666,1230.4,1222.8,0.78184654]
[1760129421419,0.79465625,1230.3,1225.6,0.14181883]
[1760129421620,0.79465625,1230.3,1221.3,2.80028974]
[1760129421621,0.79465625,1230.1,1222.8,0.78184654]
[1760129421817,0.79465625,1230.0,1225.6,0.14182721]
[1760129422219,0.93625666,1230.4,1222.7,0.78184654]
[1760129422521,0.79465625,1230.3,1225.6,0.14185004]
[1760129422714,0.79465625,1230.3,1222.6,0.78184654]
[1760129422916,0.93625666,1230.4,1225.6,0.14185178]
[1760129423121,0.14160041,1230.4,1225.6,0.14185178]
[1760129423316,0.14160041,1230.4,1222.8,0.78184654]
[1760129423517,0.14160041,1230.4,1225.6,0.14182663]
[1760129423719,0.14160041,1230.4,1223.5,0.78184654]
[1760129423923,0.14160041,1230.4,1223.6,0.78184654]
[1760129424122,0.14160041,1230.4,1225.9,0.14176827]
[1760129424322,0.14160041,1230.4,1223.8,0.78184654]
[1760129424523,0.14160041,1230.4,1223.6,0.78184654]
[1760129424725,0.79465625,1231.5,1226.3,0.1416742]
[1760129424923,0.79465625,1231.8,1223.4,0.78184654]
[1760129425122,0.79465625,1231.8,1223.3,0.78184654]
[1760129425318,0.79465625,1231.9,1223.3,0.78184654]
[1760129425823,0.79465625,1232.0,1223.4,0.78184654]
[1760129426124,0.79465625,1231.8,1223.7,0.78184654]
[1760129426427,0.79465625,1232.6,1223.6,0.78184654]
[1760129426719,0.14165863,1229.8,1225.7,0.14165863]
[1760129426919,0.79465625,1232.5,1225.7,0.14165863]
[1760129427219,0.79465625,1232.8,1225.7,0.14165863]
[1760129427423,0.79465625,1231.8,1225.7,0.14165863]
[1760129427624,0.79465625,1231.6,1225.7,0.14165863]
[1760129428017,0.14173132,1230.3,1225.7,0.14165863]
[1760129433823,0.14173132,1230.3,1222.5,0.78184654]
[1760129434026,0.14173132,1230.3,1225.5,0.14183328]
[1760129434425,0.14173132,1230.3,1222.2,0.78184654]
[1760129434625,0.14173132,1230.3,1225.6,0.14183848]
[1760129434820,0.14173132,1230.3,1222.3,0.78184654]
[1760129435128,0.14173132,1230.3,1225.5,0.1418431]
[1760129435524,0.14173132,1230.3,1222.1,0.78184654]
[1760129435720,0.14173132,1230.3,1225.4,0.14184657]
[1760129435920,0.14173132,1230.3,1221.9,0.78184654]
[1760129436120,0.14173132,1230.3,1221.8,0.78184654]
[1760129436321,0.14173132,1230.3,1220.7,2.00020695]
[1760129436322,0.14173132,1230.3,1225.2,0.14185582]
[1760129436526,0.14173132,1230.3,1221.6,0.78184654]
[1760129437021,0.14173132,1230.3,1221.7,0.78184654]
[1760129437425,0.14173132,1230.3,1223.7,0.14190991]
[1760129456336,0.93638757,1230.3,1223.7,0.14190991]
[1760129456739,0.79465625,1230.2,1223.7,0.14190991]
[1760129456940,0.14173132,1230.3,1223.7,0.14190991]
[1760129457441,0.93638757,1230.3,1223.7,0.14190991]
[1760129457735,0.79465625,1230.2,1223.7,0.14190991]
[1760129458237,0.79465625,1229.7,1223.7,0.14190991]
[1760129458437,0.79465625,1229.6,1223.7,0.14190991]
[1760129458841,0.79465625,1229.7,1223.7,0.14190991]
[1760129459137,0.79465625,1229.6,1223.7,0.14190991]
[1760129459341,0.79465625,1229.5,1223.7,0.14190991]
[1760129459541,0.79465625,1229.4,1223.7,0.14190991]
[1760129459841,0.79465625,1229.5,1223.7,0.14190991]
[1760129460036,0.79465625,1229.8,1223.7,0.14190991]